Workbook

Sheet Sheet1
A1: All Caps | C1: Last | D1: NC Last | E1: % NC Daily | F1: % NC Weekly | G1: %NC Monthly | H1: % NC Annual | M1: % NC Daily | N1: % NC Weekly | O1: %NC Monthly | P1: % NC Annual
A2: Symbol | B2: Description | C2: Trade | D2: Trade | E2: TRUE | F2: FALSE | G2: TRUE | H2: TRUE | L2: Min | M2: =IF($E$2=TRUE, MIN($E$3:$E$27), FALSE) -> -0.004312143553 | N2: =IF($F$2=TRUE, MIN($F$3:$F$27), FALSE) -> FALSE | O2: =IF($G$2=TRUE, MIN($G$3:$G$27), FALSE) -> -0.01729559748 | P2: =IF($H$2=TRUE, MIN($H$3:$H$27), FALSE) -> -0.2957179652
A3: SPY | B3: =RTD("cqg.rtd", ,"ContractData",A3, "LongDescription",, "T") -> SPDR S&P 500 | C3: =RTD("cqg.rtd", ,"ContractData",A3, "LastTradeToday",, "b") ->  | D3: =RTD("cqg.rtd", ,"ContractData",A3, "NetLastTradeToday",, "T") ->  | E3: =IFERROR(RTD("cqg.rtd", ,"ContractData",A3, "PerCentNetLastTrade",, "T")/100,"") ->  | F3: =RTD("cqg.rtd",,"StudyData",A3, "PCB","BaseType=Index,Index=1", "Close", "W",,"all",,,,"T")/100 -> 0.01384227393 | G3: =RTD("cqg.rtd",,"StudyData",A3, "PCB","BaseType=Index,Index=1", "Close", "M",,"all",,,,"T")/100 -> 0.01384227393 | H3: =RTD("cqg.rtd",,"StudyData",A3, "PCB","BaseType=Index,Index=1", "Close", "A",,"all",,,,"T")/100 -> 0.1248869159 | L3: Mid | M3: =IF($E$2=TRUE, AVERAGE($E$3:$E$27), FALSE) -> -0.0009488252731 | N3: =IF($F$2=TRUE, AVERAGE($F$3:$F$27), FALSE) -> FALSE | O3: =IF($G$2=TRUE, AVERAGE($G$3:$G$27), FALSE) -> 0.02418745269 | P3: =IF($H$2=TRUE, AVERAGE($H$3:$H$27), FALSE) -> 0.2046168138
A4: QQQ | B4: =RTD("cqg.rtd", ,"ContractData",A4, "LongDescription",, "T") -> Invesco QQQ Trust Series 1 | C4: =RTD("cqg.rtd", ,"ContractData",A4, "LastTradeToday",, "b") ->  | D4: =RTD("cqg.rtd", ,"ContractData",A4, "NetLastTradeToday",, "T") ->  | E4: =IFERROR(RTD("cqg.rtd", ,"ContractData",A4, "PerCentNetLastTrade",, "T")/100,"") ->  | F4: =RTD("cqg.rtd",,"StudyData",A4, "PCB","BaseType=Index,Index=1", "Close", "W",,"all",,,,"T")/100 -> 0.02844401056 | G4: =RTD("cqg.rtd",,"StudyData",A4, "PCB","BaseType=Index,Index=1", "Close", "M",,"all",,,,"T")/100 -> 0.02844401056 | H4: =RTD("cqg.rtd",,"StudyData",A4, "PCB","BaseType=Index,Index=1", "Close", "A",,"all",,,,"T")/100 -> 0.1318861106 | L4: Max | M4: =IF($E$2=TRUE, MAX($E$3:$E$27), FALSE) -> 0.001557566828 | N4: =IF($F$2=TRUE, MAX($F$3:$F$27), FALSE) -> FALSE | O4: =IF($G$2=TRUE, MAX($G$3:$G$27), FALSE) -> 0.1168170168 | P4: =IF($H$2=TRUE, MAX($H$3:$H$27), FALSE) -> 1.472436493
A5: BTC | B5: =RTD("cqg.rtd", ,"ContractData",A5, "LongDescription",, "T") -> Bitcoin (Globex), Jun 24 | C5: =RTD("cqg.rtd", ,"ContractData",A5, "LastTradeToday",, "b") -> 71580 | D5: =RTD("cqg.rtd", ,"ContractData",A5, "NetLastTradeToday",, "T") -> -310 | E5: =IFERROR(RTD("cqg.rtd", ,"ContractData",A5, "PerCentNetLastTrade",, "T")/100,"") -> -0.004312143553 | F5: =RTD("cqg.rtd",,"StudyData",A5, "PCB","BaseType=Index,Index=1", "Close", "W",,"all",,,,"T")/100 -> 0.05835908506 | G5: =RTD("cqg.rtd",,"StudyData",A5, "PCB","BaseType=Index,Index=1", "Close", "M",,"all",,,,"T")/100 -> 0.05835908506 | H5: =RTD("cqg.rtd",,"StudyData",A5, "PCB","BaseType=Index,Index=1", "Close", "A",,"all",,,,"T")/100 -> 0.6771714426
A6: GCE | B6: =RTD("cqg.rtd", ,"ContractData",A6, "LongDescription",, "T") -> Gold (Globex), Aug 24 | C6: =RTD("cqg.rtd", ,"ContractData",A6, "LastTradeToday",, "b") -> 2379.2 | D6: =RTD("cqg.rtd", ,"ContractData",A6, "NetLastTradeToday",, "T") -> 3.7 | E6: =IFERROR(RTD("cqg.rtd", ,"ContractData",A6, "PerCentNetLastTrade",, "T")/100,"") -> 0.001557566828 | F6: =RTD("cqg.rtd",,"StudyData",A6, "PCB","BaseType=Index,Index=1", "Close", "W",,"all",,,,"T")/100 -> 0.01545481941 | G6: =RTD("cqg.rtd",,"StudyData",A6, "PCB","BaseType=Index,Index=1", "Close", "M",,"all",,,,"T")/100 -> 0.01545481941 | H6: =RTD("cqg.rtd",,"StudyData",A6, "PCB","BaseType=Index,Index=1", "Close", "A",,"all",,,,"T")/100 -> 0.1385268848
A7: EU6 | B7: =RTD("cqg.rtd", ,"ContractData",A7, "LongDescription",, "T") -> Euro FX (Globex), Jun 24 | C7: =RTD("cqg.rtd", ,"ContractData",A7, "LastTradeToday",, "b") -> 1.08805 | D7: =RTD("cqg.rtd", ,"ContractData",A7, "NetLastTradeToday",, "T") -> -0.0001 | E7: =IFERROR(RTD("cqg.rtd", ,"ContractData",A7, "PerCentNetLastTrade",, "T")/100,"") -> -9.189909479e-05 | F7: =RTD("cqg.rtd",,"StudyData",A7, "PCB","BaseType=Index,Index=1", "Close", "W",,"all",,,,"T")/100 -> 0.002811059908 | G7: =RTD("cqg.rtd",,"StudyData",A7, "PCB","BaseType=Index,Index=1", "Close", "M",,"all",,,,"T")/100 -> 0.002811059908 | H7: =RTD("cqg.rtd",,"StudyData",A7, "PCB","BaseType=Index,Index=1", "Close", "A",,"all",,,,"T")/100 -> -0.01756207675
A8: S.MSFT | B8: =RTD("cqg.rtd", ,"ContractData",A8, "LongDescription",, "T") -> Microsoft Corporation | C8: =RTD("cqg.rtd", ,"ContractData",A8, "LastTradeToday",, "b") ->  | D8: =RTD("cqg.rtd", ,"ContractData",A8, "NetLastTradeToday",, "T") ->  | E8: =IFERROR(RTD("cqg.rtd", ,"ContractData",A8, "PerCentNetLastTrade",, "T")/100,"") ->  | F8: =RTD("cqg.rtd",,"StudyData",A8, "PCB","BaseType=Index,Index=1", "Close", "W",,"all",,,,"T")/100 -> 0.0213908896 | G8: =RTD("cqg.rtd",,"StudyData",A8, "PCB","BaseType=Index,Index=1", "Close", "M",,"all",,,,"T")/100 -> 0.0213908896 | H8: =RTD("cqg.rtd",,"StudyData",A8, "PCB","BaseType=Index,Index=1", "Close", "A",,"all",,,,"T")/100 -> 0.1275662164
A9: S.AAPL | B9: =RTD("cqg.rtd", ,"ContractData",A9, "LongDescription",, "T") -> Apple Inc | C9: =RTD("cqg.rtd", ,"ContractData",A9, "LastTradeToday",, "b") ->  | D9: =RTD("cqg.rtd", ,"ContractData",A9, "NetLastTradeToday",, "T") ->  | E9: =IFERROR(RTD("cqg.rtd", ,"ContractData",A9, "PerCentNetLastTrade",, "T")/100,"") ->  | F9: =RTD("cqg.rtd",,"StudyData",A9, "PCB","BaseType=Index,Index=1", "Close", "W",,"all",,,,"T")/100 -> 0.01882964889 | G9: =RTD("cqg.rtd",,"StudyData",A9, "PCB","BaseType=Index,Index=1", "Close", "M",,"all",,,,"T")/100 -> 0.01882964889 | H9: =RTD("cqg.rtd",,"StudyData",A9, "PCB","BaseType=Index,Index=1", "Close", "A",,"all",,,,"T")/100 -> 0.01734794577
A10: S.NVDA | B10: =RTD("cqg.rtd", ,"ContractData",A10, "LongDescription",, "T") -> NVIDIA Corp | C10: =RTD("cqg.rtd", ,"ContractData",A10, "LastTradeToday",, "b") ->  | D10: =RTD("cqg.rtd", ,"ContractData",A10, "NetLastTradeToday",, "T") ->  | E10: =IFERROR(RTD("cqg.rtd", ,"ContractData",A10, "PerCentNetLastTrade",, "T")/100,"") ->  | F10: =RTD("cqg.rtd",,"StudyData",A10, "PCB","BaseType=Index,Index=1", "Close", "W",,"all",,,,"T")/100 -> 0.1168170168 | G10: =RTD("cqg.rtd",,"StudyData",A10, "PCB","BaseType=Index,Index=1", "Close", "M",,"all",,,,"T")/100 -> 0.1168170168 | H10: =RTD("cqg.rtd",,"StudyData",A10, "PCB","BaseType=Index,Index=1", "Close", "A",,"all",,,,"T")/100 -> 1.472436493
A11: S.AMZN | B11: =RTD("cqg.rtd", ,"ContractData",A11, "LongDescription",, "T") -> Amazon.com Inc | C11: =RTD("cqg.rtd", ,"ContractData",A11, "LastTradeToday",, "b") ->  | D11: =RTD("cqg.rtd", ,"ContractData",A11, "NetLastTradeToday",, "T") ->  | E11: =IFERROR(RTD("cqg.rtd", ,"ContractData",A11, "PerCentNetLastTrade",, "T")/100,"") ->  | F11: =RTD("cqg.rtd",,"StudyData",A11, "PCB","BaseType=Index,Index=1", "Close", "W",,"all",,,,"T")/100 -> 0.02743142145 | G11: =RTD("cqg.rtd",,"StudyData",A11, "PCB","BaseType=Index,Index=1", "Close", "M",,"all",,,,"T")/100 -> 0.02743142145 | H11: =RTD("cqg.rtd",,"StudyData",A11, "PCB","BaseType=Index,Index=1", "Close", "A",,"all",,,,"T")/100 -> 0.1931025405
A12: S.AVGO | B12: =RTD("cqg.rtd", ,"ContractData",A12, "LongDescription",, "T") -> Broadcom Inc. | C12: =RTD("cqg.rtd", ,"ContractData",A12, "LastTradeToday",, "b") ->  | D12: =RTD("cqg.rtd", ,"ContractData",A12, "NetLastTradeToday",, "T") ->  | E12: =IFERROR(RTD("cqg.rtd", ,"ContractData",A12, "PerCentNetLastTrade",, "T")/100,"") ->  | F12: =RTD("cqg.rtd",,"StudyData",A12, "PCB","BaseType=Index,Index=1", "Close", "W",,"all",,,,"T")/100 -> 0.06363328441 | G12: =RTD("cqg.rtd",,"StudyData",A12, "PCB","BaseType=Index,Index=1", "Close", "M",,"all",,,,"T")/100 -> 0.06363328441 | H12: =RTD("cqg.rtd",,"StudyData",A12, "PCB","BaseType=Index,Index=1", "Close", "A",,"all",,,,"T")/100 -> 0.2659260918
A13: S.META | B13: =RTD("cqg.rtd", ,"ContractData",A13, "LongDescription",, "T") -> Meta Platforms, Inc. | C13: =RTD("cqg.rtd", ,"ContractData",A13, "LastTradeToday",, "b") ->  | D13: =RTD("cqg.rtd", ,"ContractData",A13, "NetLastTradeToday",, "T") ->  | E13: =IFERROR(RTD("cqg.rtd", ,"ContractData",A13, "PerCentNetLastTrade",, "T")/100,"") ->  | F13: =RTD("cqg.rtd",,"StudyData",A13, "PCB","BaseType=Index,Index=1", "Close", "W",,"all",,,,"T")/100 -> 0.06047169205 | G13: =RTD("cqg.rtd",,"StudyData",A13, "PCB","BaseType=Index,Index=1", "Close", "M",,"all",,,,"T")/100 -> 0.06047169205 | H13: =RTD("cqg.rtd",,"StudyData",A13, "PCB","BaseType=Index,Index=1", "Close", "A",,"all",,,,"T")/100 -> 0.3986326139
A14: S.GOOGL | B14: =RTD("cqg.rtd", ,"ContractData",A14, "LongDescription",, "T") -> Alphabet, Inc. Class A | C14: =RTD("cqg.rtd", ,"ContractData",A14, "LastTradeToday",, "b") ->  | D14: =RTD("cqg.rtd", ,"ContractData",A14, "NetLastTradeToday",, "T") ->  | E14: =IFERROR(RTD("cqg.rtd", ,"ContractData",A14, "PerCentNetLastTrade",, "T")/100,"") ->  | F14: =RTD("cqg.rtd",,"StudyData",A14, "PCB","BaseType=Index,Index=1", "Close", "W",,"all",,,,"T")/100 -> 0.01686956522 | G14: =RTD("cqg.rtd",,"StudyData",A14, "PCB","BaseType=Index,Index=1", "Close", "M",,"all",,,,"T")/100 -> 0.01686956522 | H14: =RTD("cqg.rtd",,"StudyData",A14, "PCB","BaseType=Index,Index=1", "Close", "A",,"all",,,,"T")/100 -> 0.2557090701
A15: S.GOOG | B15: =RTD("cqg.rtd", ,"ContractData",A15, "LongDescription",, "T") -> Alphabet, Inc. Class C | C15: =RTD("cqg.rtd", ,"ContractData",A15, "LastTradeToday",, "b") ->  | D15: =RTD("cqg.rtd", ,"ContractData",A15, "NetLastTradeToday",, "T") ->  | E15: =IFERROR(RTD("cqg.rtd", ,"ContractData",A15, "PerCentNetLastTrade",, "T")/100,"") ->  | F15: =RTD("cqg.rtd",,"StudyData",A15, "PCB","BaseType=Index,Index=1", "Close", "W",,"all",,,,"T")/100 -> 0.01787767303 | G15: =RTD("cqg.rtd",,"StudyData",A15, "PCB","BaseType=Index,Index=1", "Close", "M",,"all",,,,"T")/100 -> 0.01787767303 | H15: =RTD("cqg.rtd",,"StudyData",A15, "PCB","BaseType=Index,Index=1", "Close", "A",,"all",,,,"T")/100 -> 0.2564393671
A16: S.COST | B16: =RTD("cqg.rtd", ,"ContractData",A16, "LongDescription",, "T") -> Costco Wholesale Corp | C16: =RTD("cqg.rtd", ,"ContractData",A16, "LastTradeToday",, "b") ->  | D16: =RTD("cqg.rtd", ,"ContractData",A16, "NetLastTradeToday",, "T") ->  | E16: =IFERROR(RTD("cqg.rtd", ,"ContractData",A16, "PerCentNetLastTrade",, "T")/100,"") ->  | F16: =RTD("cqg.rtd",,"StudyData",A16, "PCB","BaseType=Index,Index=1", "Close", "W",,"all",,,,"T")/100 -> 0.03013989554 | G16: =RTD("cqg.rtd",,"StudyData",A16, "PCB","BaseType=Index,Index=1", "Close", "M",,"all",,,,"T")/100 -> 0.03013989554 | H16: =RTD("cqg.rtd",,"StudyData",A16, "PCB","BaseType=Index,Index=1", "Close", "A",,"all",,,,"T")/100 -> 0.2639377045
A17: S.TSLA | B17: =RTD("cqg.rtd", ,"ContractData",A17, "LongDescription",, "T") -> Tesla Inc. | C17: =RTD("cqg.rtd", ,"ContractData",A17, "LastTradeToday",, "b") ->  | D17: =RTD("cqg.rtd", ,"ContractData",A17, "NetLastTradeToday",, "T") ->  | E17: =IFERROR(RTD("cqg.rtd", ,"ContractData",A17, "PerCentNetLastTrade",, "T")/100,"") ->  | F17: =RTD("cqg.rtd",,"StudyData",A17, "PCB","BaseType=Index,Index=1", "Close", "W",,"all",,,,"T")/100 -> -0.01729559748 | G17: =RTD("cqg.rtd",,"StudyData",A17, "PCB","BaseType=Index,Index=1", "Close", "M",,"all",,,,"T")/100 -> -0.01729559748 | H17: =RTD("cqg.rtd",,"StudyData",A17, "PCB","BaseType=Index,Index=1", "Close", "A",,"all",,,,"T")/100 -> -0.2957179652
A18: S.NFLX | B18: =RTD("cqg.rtd", ,"ContractData",A18, "LongDescription",, "T") -> Netflix Inc | C18: =RTD("cqg.rtd", ,"ContractData",A18, "LastTradeToday",, "b") ->  | D18: =RTD("cqg.rtd", ,"ContractData",A18, "NetLastTradeToday",, "T") ->  | E18: =IFERROR(RTD("cqg.rtd", ,"ContractData",A18, "PerCentNetLastTrade",, "T")/100,"") ->  | F18: =RTD("cqg.rtd",,"StudyData",A18, "PCB","BaseType=Index,Index=1", "Close", "W",,"all",,,,"T")/100 -> 0.01348149995 | G18: =RTD("cqg.rtd",,"StudyData",A18, "PCB","BaseType=Index,Index=1", "Close", "M",,"all",,,,"T")/100 -> 0.01348149995 | H18: =RTD("cqg.rtd",,"StudyData",A18, "PCB","BaseType=Index,Index=1", "Close", "A",,"all",,,,"T")/100 -> 0.3355857706
A19: S.AMD | B19: =RTD("cqg.rtd", ,"ContractData",A19, "LongDescription",, "T") -> Advanced Micro Devices | C19: =RTD("cqg.rtd", ,"ContractData",A19, "LastTradeToday",, "b") ->  | D19: =RTD("cqg.rtd", ,"ContractData",A19, "NetLastTradeToday",, "T") ->  | E19: =IFERROR(RTD("cqg.rtd", ,"ContractData",A19, "PerCentNetLastTrade",, "T")/100,"") ->  | F19: =RTD("cqg.rtd",,"StudyData",A19, "PCB","BaseType=Index,Index=1", "Close", "W",,"all",,,,"T")/100 -> -0.004373876573 | G19: =RTD("cqg.rtd",,"StudyData",A19, "PCB","BaseType=Index,Index=1", "Close", "M",,"all",,,,"T")/100 -> -0.004373876573 | H19: =RTD("cqg.rtd",,"StudyData",A19, "PCB","BaseType=Index,Index=1", "Close", "A",,"all",,,,"T")/100 -> 0.1272640933
A20: S.PEP | B20: =RTD("cqg.rtd", ,"ContractData",A20, "LongDescription",, "T") -> PepsiCo Inc | C20: =RTD("cqg.rtd", ,"ContractData",A20, "LastTradeToday",, "b") ->  | D20: =RTD("cqg.rtd", ,"ContractData",A20, "NetLastTradeToday",, "T") ->  | E20: =IFERROR(RTD("cqg.rtd", ,"ContractData",A20, "PerCentNetLastTrade",, "T")/100,"") ->  | F20: =RTD("cqg.rtd",,"StudyData",A20, "PCB","BaseType=Index,Index=1", "Close", "W",,"all",,,,"T")/100 -> 0.003412377097 | G20: =RTD("cqg.rtd",,"StudyData",A20, "PCB","BaseType=Index,Index=1", "Close", "M",,"all",,,,"T")/100 -> 0.003412377097 | H20: =RTD("cqg.rtd",,"StudyData",A20, "PCB","BaseType=Index,Index=1", "Close", "A",,"all",,,,"T")/100 -> 0.02149081488
A21: S.QCOM | B21: =RTD("cqg.rtd", ,"ContractData",A21, "LongDescription",, "T") -> QUALCOMM Inc | C21: =RTD("cqg.rtd", ,"ContractData",A21, "LastTradeToday",, "b") ->  | D21: =RTD("cqg.rtd", ,"ContractData",A21, "NetLastTradeToday",, "T") ->  | E21: =IFERROR(RTD("cqg.rtd", ,"ContractData",A21, "PerCentNetLastTrade",, "T")/100,"") ->  | F21: =RTD("cqg.rtd",,"StudyData",A21, "PCB","BaseType=Index,Index=1", "Close", "W",,"all",,,,"T")/100 -> 0.038470963 | G21: =RTD("cqg.rtd",,"StudyData",A21, "PCB","BaseType=Index,Index=1", "Close", "M",,"all",,,,"T")/100 -> 0.038470963 | H21: =RTD("cqg.rtd",,"StudyData",A21, "PCB","BaseType=Index,Index=1", "Close", "A",,"all",,,,"T")/100 -> 0.465117887
A22: S.ADBE | B22: =RTD("cqg.rtd", ,"ContractData",A22, "LongDescription",, "T") -> Adobe Inc. | C22: =RTD("cqg.rtd", ,"ContractData",A22, "LastTradeToday",, "b") ->  | D22: =RTD("cqg.rtd", ,"ContractData",A22, "NetLastTradeToday",, "T") ->  | E22: =IFERROR(RTD("cqg.rtd", ,"ContractData",A22, "PerCentNetLastTrade",, "T")/100,"") ->  | F22: =RTD("cqg.rtd",,"StudyData",A22, "PCB","BaseType=Index,Index=1", "Close", "W",,"all",,,,"T")/100 -> 0.02482237611 | G22: =RTD("cqg.rtd",,"StudyData",A22, "PCB","BaseType=Index,Index=1", "Close", "M",,"all",,,,"T")/100 -> 0.02482237611 | H22: =RTD("cqg.rtd",,"StudyData",A22, "PCB","BaseType=Index,Index=1", "Close", "A",,"all",,,,"T")/100 -> -0.2360040228
A23: S.LIN | B23: =RTD("cqg.rtd", ,"ContractData",A23, "LongDescription",, "T") -> Linde PLC | C23: =RTD("cqg.rtd", ,"ContractData",A23, "LastTradeToday",, "b") ->  | D23: =RTD("cqg.rtd", ,"ContractData",A23, "NetLastTradeToday",, "T") ->  | E23: =IFERROR(RTD("cqg.rtd", ,"ContractData",A23, "PerCentNetLastTrade",, "T")/100,"") ->  | F23: =RTD("cqg.rtd",,"StudyData",A23, "PCB","BaseType=Index,Index=1", "Close", "W",,"all",,,,"T")/100 -> -0.001010286554 | G23: =RTD("cqg.rtd",,"StudyData",A23, "PCB","BaseType=Index,Index=1", "Close", "M",,"all",,,,"T")/100 -> -0.001010286554 | H23: =RTD("cqg.rtd",,"StudyData",A23, "PCB","BaseType=Index,Index=1", "Close", "A",,"all",,,,"T")/100 -> 0.05936206477
A24: S.TMUS | B24: =RTD("cqg.rtd", ,"ContractData",A24, "LongDescription",, "T") -> T-Mobile US, Inc. | C24: =RTD("cqg.rtd", ,"ContractData",A24, "LastTradeToday",, "b") ->  | D24: =RTD("cqg.rtd", ,"ContractData",A24, "NetLastTradeToday",, "T") ->  | E24: =IFERROR(RTD("cqg.rtd", ,"ContractData",A24, "PerCentNetLastTrade",, "T")/100,"") ->  | F24: =RTD("cqg.rtd",,"StudyData",A24, "PCB","BaseType=Index,Index=1", "Close", "W",,"all",,,,"T")/100 -> 0.03034979424 | G24: =RTD("cqg.rtd",,"StudyData",A24, "PCB","BaseType=Index,Index=1", "Close", "M",,"all",,,,"T")/100 -> 0.03034979424 | H24: =RTD("cqg.rtd",,"StudyData",A24, "PCB","BaseType=Index,Index=1", "Close", "A",,"all",,,,"T")/100 -> 0.12436849
A25: S.CSCO | B25: =RTD("cqg.rtd", ,"ContractData",A25, "LongDescription",, "T") -> Cisco Systems Inc | C25: =RTD("cqg.rtd", ,"ContractData",A25, "LastTradeToday",, "b") ->  | D25: =RTD("cqg.rtd", ,"ContractData",A25, "NetLastTradeToday",, "T") ->  | E25: =IFERROR(RTD("cqg.rtd", ,"ContractData",A25, "PerCentNetLastTrade",, "T")/100,"") ->  | F25: =RTD("cqg.rtd",,"StudyData",A25, "PCB","BaseType=Index,Index=1", "Close", "W",,"all",,,,"T")/100 -> -0.01032258065 | G25: =RTD("cqg.rtd",,"StudyData",A25, "PCB","BaseType=Index,Index=1", "Close", "M",,"all",,,,"T")/100 -> -0.01032258065 | H25: =RTD("cqg.rtd",,"StudyData",A25, "PCB","BaseType=Index,Index=1", "Close", "A",,"all",,,,"T")/100 -> -0.0890736342
A26: S.AMAT | B26: =RTD("cqg.rtd", ,"ContractData",A26, "LongDescription",, "T") -> Applied Materials Inc | C26: =RTD("cqg.rtd", ,"ContractData",A26, "LastTradeToday",, "b") ->  | D26: =RTD("cqg.rtd", ,"ContractData",A26, "NetLastTradeToday",, "T") ->  | E26: =IFERROR(RTD("cqg.rtd", ,"ContractData",A26, "PerCentNetLastTrade",, "T")/100,"") ->  | F26: =RTD("cqg.rtd",,"StudyData",A26, "PCB","BaseType=Index,Index=1", "Close", "W",,"all",,,,"T")/100 -> 0.03854379766 | G26: =RTD("cqg.rtd",,"StudyData",A26, "PCB","BaseType=Index,Index=1", "Close", "M",,"all",,,,"T")/100 -> 0.03854379766 | H26: =RTD("cqg.rtd",,"StudyData",A26, "PCB","BaseType=Index,Index=1", "Close", "A",,"all",,,,"T")/100 -> 0.3782316283
A27: S.INTU | B27: =RTD("cqg.rtd", ,"ContractData",A27, "LongDescription",, "T") -> Intuit Corp | C27: =RTD("cqg.rtd", ,"ContractData",A27, "LastTradeToday",, "b") ->  | D27: =RTD("cqg.rtd", ,"ContractData",A27, "NetLastTradeToday",, "T") ->  | E27: =IFERROR(RTD("cqg.rtd", ,"ContractData",A27, "PerCentNetLastTrade",, "T")/100,"") ->  | F27: =RTD("cqg.rtd",,"StudyData",A27, "PCB","BaseType=Index,Index=1", "Close", "W",,"all",,,,"T")/100 -> -0.003764485462 | G27: =RTD("cqg.rtd",,"StudyData",A27, "PCB","BaseType=Index,Index=1", "Close", "M",,"all",,,,"T")/100 -> -0.003764485462 | H27: =RTD("cqg.rtd",,"StudyData",A27, "PCB","BaseType=Index,Index=1", "Close", "A",,"all",,,,"T")/100 -> -0.08121210182
